bitfinex/quotes_SOLUSD_20250611
["timestamp","ask_amount","ask_price","bid_price","bid_amount"]
[1749615403061,1.5216,165.43,165.36,26.0]
[1749615403260,20.567502,165.37,165.26,7.3531599]
[1749615403470,10.283751,165.31,165.27,24.92]
[1749615403653,10.283751,165.31,165.3,26.0]
[1749615404053,10.283751,165.36,165.31,26.0]
[1749615404054,10.283751,165.32,165.31,26.0]
[1749615405570,10.283751,165.32,165.28,18.79181043]
[1749615405751,10.283751,165.31,165.29,0.14216157]
[1749615406070,10.283751,165.31,165.3,26.0]
[1749615408867,10.283751,165.36,165.31,26.0]
[1749615409169,10.283751,165.32,165.31,26.0]
[1749615409878,5.44,165.37,165.31,26.0]
[1749615410176,10.283751,165.32,165.31,26.0]
[1749615416574,10.283751,165.32,165.27,0.14216157]
[1749615416778,10.283751,165.28,165.26,44.64964886]
[1749615417089,11.915451,165.36,165.28,26.0]
[1749615417258,10.283751,165.29,165.28,26.0]
[1749615417670,10.283751,165.29,165.27,26.0]
[1749615417869,10.283751,165.28,165.27,26.0]
[1749615421463,10.283751,165.28,165.23,43.71181043]
[1749615421464,20.567502,165.28,165.19,18.64964886]
[1749615421683,20.567502,165.28,165.15,24.92]
[1749615421684,10.283751,165.2,165.15,24.92]
[1749615421864,10.283751,165.17,165.15,29.82862848]
[1749615422065,10.283751,165.18,165.16,18.79181043]
[1749615422286,10.283751,165.17,165.15,18.64964886]
[1749615422484,10.283751,165.16,165.15,18.64964886]
[1749615422792,10.283751,165.19,165.18,26.0]
[1749615422962,10.283751,165.19,165.18,28.03026175]
[1749615423162,6.6284,165.24,165.18,28.03030389]
[1749615423390,10.283751,165.19,165.15,18.64964886]
[1749615423685,10.283751,165.16,165.15,18.79181043]
[1749615423859,10.283751,165.16,165.15,20.82274233]
[1749615424287,10.283751,165.16,165.15,20.68058076]
[1749615424583,10.283751,165.16,165.15,20.6770139]
[1749615424883,10.283751,165.16,165.15,20.81917547]
[1749615425086,6.6284,165.24,165.17,0.14216157]
[1749615425269,6.6284,165.24,165.19,26.0]
[1749615425465,6.6284,165.24,165.2,2.02736567]
[1749615425703,22.327951,165.28,165.2,2.02736567]
[1749615425992,22.327951,165.28,165.21,26.0]
[1749615426885,10.283751,165.23,165.21,26.0]
[1749615427086,10.283751,165.25,165.24,26.0]
[1749615427389,10.283751,165.25,165.24,28.02819283]
[1749615427691,10.283751,165.25,165.24,28.02730751]
[1749615427888,10.283751,165.25,165.24,28.02728336]
[1749615428072,10.283751,165.25,165.24,26.0]
[1749615428385,10.283751,165.25,165.22,89.9]
[1749615428592,10.283751,165.23,165.22,89.9]
[1749615428786,10.283751,165.23,165.22,91.94067223]
[1749615428983,15.723751,165.28,165.22,91.94067223]
[1749615429190,10.283751,165.23,165.22,26.0]
[1749615429374,10.283751,165.23,165.22,28.04064257]
[1749615429570,10.283751,165.23,165.22,28.04063331]
[1749615429789,10.283751,165.23,165.22,28.04042519]
[1749615429987,5.44,165.28,165.22,28.04042519]
[1749615430188,10.283751,165.26,165.24,0.14216157]
[1749615430389,10.283751,165.26,165.25,20.83263932]
[1749615430688,10.283751,165.26,165.25,18.79181043]
[1749615430882,10.283751,165.26,165.25,20.83223362]
[1749615431193,10.283751,165.26,165.25,18.79181043]
[1749615431393,10.283751,165.26,165.25,20.83220568]
[1749615432896,10.283751,165.26,165.25,20.83204413]
[1749615433303,10.283751,165.26,165.25,20.82574152]
[1749615433814,6.3056,165.32,165.25,20.82574502]
[1749615434113,10.283751,165.26,165.25,18.79181043]
[1749615434311,10.283751,165.26,165.25,20.82586259]
[1749615434492,10.283751,165.26,165.25,20.82587191]
[1749615434898,10.283751,165.26,165.25,20.8258754]
[1749615435811,10.283751,165.26,165.25,18.79181043]
[1749615436011,10.283751,165.26,165.25,20.82599953]
[1749615436213,10.283751,165.26,165.25,20.82599604]
[1749615437105,10.283751,165.26,165.25,20.8263028]
[1749615437419,10.283751,165.26,165.25,20.8262993]
[1749615437606,10.283751,165.26,165.25,18.79181043]
[1749615437809,10.283751,165.26,165.25,2.03448887]
[1749615438003,6.3056,165.32,165.27,26.0]
[1749615438317,10.283751,165.28,165.27,26.0]
[1749615439212,20.567502,165.28,165.25,89.9]
[1749615439403,10.283751,165.26,165.25,89.9]
[1749615440218,10.283751,165.26,165.22,26.0]
[1749615440390,10.283751,165.23,165.22,115.9]
[1749615440590,10.283751,165.23,165.22,136.72286186]
[1749615440810,10.283751,165.24,165.22,118.073213]
[1749615441008,10.283751,165.28,165.23,2.03105143]
[1749615441309,10.283751,165.24,165.22,116.04216157]
[1749615441511,10.283751,165.23,165.22,134.69181043]
[1749615441703,10.283751,165.23,165.22,136.72433758]
[1749615442714,10.283751,165.23,165.22,115.9]
[1749615443100,10.283751,165.23,165.22,117.93510067]
[1749615444310,10.283751,165.23,165.22,28.03510067]
[1749615444518,10.283751,165.23,165.22,2.04459631]
[1749615444709,10.283751,165.23,165.22,2.04817714]
[1749615444910,10.283751,165.23,165.17,2.04840075]
[1749615445112,10.283751,165.18,165.17,50.94]
[1749615445315,10.283751,165.18,165.17,52.98842597]
[1749615445621,7.8595,165.26,165.17,2.04842597]
[1749615445826,10.283751,165.18,165.15,0.14216157]
[1749615446020,10.283751,165.16,165.15,18.79181043]
[1749615446327,10.283751,165.16,165.15,52.98749217]
[1749615446624,10.283751,165.16,165.15,52.98753879]
[1749615447311,10.283751,165.16,165.15,28.04753879]
[1749615447624,10.283751,165.16,165.15,2.04753879]
[1749615447920,10.283751,165.16,165.15,26.0]
[1749615448124,10.283751,165.16,165.15,28.06109439]
[1749615448302,10.283751,165.2,165.16,26.0]
[1749615448509,10.283751,165.17,165.16,26.0]
[1749615448723,10.283751,165.17,165.16,28.06109382]
[1749615449021,10.283751,165.2,165.16,28.06109382]
[1749615449213,10.283751,165.17,165.16,26.0]
[1749615449408,10.283751,165.17,165.16,28.06007867]
[1749615449613,10.283751,165.17,165.16,26.0]
[1749615449809,10.283751,165.17,165.16,28.0603955]
[1749615450014,8.00166157,165.26,165.18,26.0]
[1749615450015,7.8595,165.26,165.18,26.0]
[1749615450224,10.283751,165.21,165.19,20.71004436]
[1749615450407,7.8595,165.26,165.21,26.0]
[1749615450724,6.25,165.26,165.22,2.0603955]
[1749615450928,10.283751,165.23,165.22,26.0]
[1749615451233,5.44,165.27,165.23,26.0]
[1749615451826,5.44,165.27,165.25,26.0]
[1749615452008,5.44,165.27,165.26,28.0604828]
[1749615452211,7.7754,165.34,165.26,26.0]
[1749615452406,10.283751,165.28,165.27,26.0]
[1749615452612,10.283751,165.28,165.26,50.94]
[1749615453535,10.283751,165.28,165.27,2.05434298]
[1749615454415,10.283751,165.28,165.26,50.94]
[1749615454620,7.7754,165.34,165.27,2.05422119]
[1749615454931,10.283751,165.28,165.26,50.94]
[1749615455104,10.283751,165.27,165.26,50.94]
[1749615455304,10.283751,165.27,165.26,52.99438368]
[1749615455528,10.283751,165.27,165.26,28.05438368]
[1749615456323,10.283751,165.27,165.26,28.05612385]
[1749615456731,10.283751,165.27,165.26,2.05612385]
[1749615457104,10.283751,165.27,165.26,28.05612385]
[1749615458432,10.283751,165.27,165.26,28.04539069]
[1749615458633,7.7754,165.34,165.27,26.0]
[1749615458927,10.283751,165.28,165.27,26.0]
[1749615459158,10.283751,165.28,165.27,28.04480044]
[1749615459606,10.283751,165.28,165.27,28.04488929]
[1749615461035,10.283751,165.28,165.27,28.04650544]
[1749615461237,10.283751,165.28,165.27,26.0]
[1749615461443,10.283751,165.28,165.27,28.04639337]
[1749615462739,10.283751,165.28,165.27,28.04426611]
[1749615463034,10.283751,165.28,165.27,28.04426259]
[1749615463335,10.283751,165.28,165.27,28.04411257]
[1749615464234,10.283751,165.28,165.27,28.04426687]
[1749615464617,10.283751,165.28,165.27,30.08852603]
[1749615464818,10.283751,165.28,165.27,30.0885297]
[1749615465033,10.283751,165.28,165.27,30.0885185]
[1749615465916,10.283751,165.28,165.27,28.04426687]
[1749615466536,10.283751,165.28,165.27,30.08855778]
[1749615467422,10.283751,165.28,165.27,30.08886602]
[1749615467823,10.283751,165.28,165.27,30.09098373]
[1749615468043,10.283751,165.28,165.27,28.04426687]
[1749615468235,10.283751,165.28,165.27,30.0909802]
[1749615468828,10.283751,165.28,165.27,4.0909802]
[1749615468829,20.567502,165.28,165.27,4.0909802]
[1749615469031,26.789202,165.28,165.27,4.0909802]
[1749615469333,26.789202,165.28,165.27,2.04426687]
[1749615469527,26.789202,165.28,165.27,4.09202058]
[1749615469739,26.789202,165.28,165.27,2.04426687]
[1749615470332,26.789202,165.28,165.27,4.09198041]
[1749615470842,26.789202,165.28,165.27,2.04426687]
[1749615471224,26.789202,165.28,165.27,4.09245593]
[1749615471424,26.789202,165.28,165.27,4.09245591]
[1749615473635,26.789202,165.28,165.27,4.09916966]
[1749615474243,26.789202,165.28,165.27,4.09916614]
[1749615474440,20.567502,165.28,165.27,4.09916614]
[1749615475256,20.567502,165.28,165.27,4.09918929]
[1749615475753,20.567502,165.28,165.27,4.09924564]
[1749615476257,20.567502,165.28,165.27,4.09925986]
[1749615476434,20.567502,165.28,165.27,2.04426687]
[1749615476932,20.567502,165.28,165.27,4.09925986]
[1749615477241,20.567502,165.28,165.27,4.09950853]
[1749615477649,20.567502,165.28,165.27,4.09950885]
[1749615477835,20.567502,165.28,165.27,4.09951792]
[1749615478037,20.567502,165.28,165.27,4.09951151]
[1749615478649,20.567502,165.28,165.27,2.04426687]
[1749615478852,20.567502,165.28,165.27,4.09939125]
[1749615479052,10.283751,165.28,165.27,4.09923823]
[1749615479251,10.283751,165.28,165.27,4.09912079]
[1749615480437,20.567502,165.28,165.27,4.0993389]
[1749615480645,20.567502,165.28,165.27,4.09935299]
[1749615480851,20.567502,165.28,165.27,4.09939406]
[1749615482034,20.567502,165.28,165.27,4.09976646]
[1749615482238,20.567502,165.28,165.27,4.09983223]
[1749615483244,20.567502,165.28,165.21,26.0]
[1749615483445,10.283751,165.22,165.21,26.0]
[1749615484134,10.283751,165.22,165.17,25.06216157]
[1749615484346,10.283751,165.19,165.17,25.06216157]
[1749615484633,10.283751,165.19,165.17,24.92]
[1749615485059,10.283751,165.2,165.19,26.0]
[1749615485733,11.806351,165.28,165.19,26.14216157]
[1749615485935,5.44,165.29,165.23,26.0]
[1749615486154,10.283751,165.24,165.23,26.0]
[1749615491667,10.283751,165.24,165.2,26.14216157]
[1749615491864,10.283751,165.21,165.2,116.04216157]
[1749615492356,10.283751,165.21,165.2,115.9]
[1749615492861,10.283751,165.21,165.2,89.9]
[1749615497973,10.283751,165.21,165.2,26.0]
[1749615498566,10.283751,165.22,165.21,26.0]
[1749615498775,10.283751,165.23,165.21,26.0]
[1749615498978,10.283751,165.22,165.21,26.0]
[1749615499465,10.283751,165.28,165.21,26.0]
[1749615499659,10.283751,165.22,165.21,115.9]
[1749615502973,10.283751,165.28,165.21,115.9]
[1749615503149,10.283751,165.22,165.2,114.82]
[1749615505975,5.44,165.29,165.23,26.0]
[1749615506178,5.44,165.29,165.23,140.82]
[1749615506351,5.44,165.29,165.27,26.0]
[1749615506551,15.723751,165.29,165.28,26.0]
[1749615506766,5.44,165.29,165.28,115.9]
[1749615506977,15.723751,165.29,165.28,115.9]
[1749615509555,15.723751,165.29,165.28,26.0]
[1749615509782,15.723751,165.29,165.22,0.14216157]
[1749615509959,10.283751,165.23,165.22,24.92]
[1749615510154,10.283751,165.23,165.21,26.4757]
[1749615510354,10.283751,165.24,165.23,26.0]
[1749615510970,10.283751,165.25,165.24,26.0]
[1749615514872,10.283751,165.27,165.24,26.0]
[1749615515073,10.283751,165.26,165.24,115.9]
[1749615515486,10.283751,165.27,165.24,115.9]
[1749615515690,5.44,165.29,165.25,43.71181043]
[1749615515877,5.44,165.29,165.28,26.0]
[1749615517086,15.723751,165.29,165.28,26.0]
[1749615522276,5.44,165.29,165.28,26.0]
[1749615522485,5.44,165.29,165.27,24.9]
[1749615522787,10.283751,165.31,165.3,26.0]
[1749615526292,10.283751,165.33,165.3,26.0]
[1749615526673,5.42,165.38,165.3,26.0]
[1749615526876,10.283751,165.33,165.3,26.0]
[1749615527197,10.283751,165.32,165.3,26.0]
[1749615527584,10.283751,165.31,165.3,26.0]
[1749615528371,6.3162,165.35,165.31,26.0]
[1749615528572,10.283751,165.32,165.31,26.0]
[1749615535071,10.283751,165.32,165.28,89.9]
[1749615535277,10.283751,165.29,165.28,89.9]
[1749615536515,10.283751,165.29,165.26,115.9]
[1749615536682,6.3162,165.35,165.27,26.0]
[1749615536885,10.283751,165.28,165.27,26.0]
[1749615537583,20.567502,165.28,165.24,89.9]
[1749615537807,10.283751,165.25,165.24,89.9]
[1749615540600,25.67244886,165.34,165.24,89.9]
[1749615540793,10.283751,165.27,165.24,89.9]
[1749615541109,10.283751,165.29,165.28,26.0]
[1749615541788,10.283751,165.29,165.27,50.9]
[1749615541991,10.283751,165.31,165.27,50.9]
[1749615542209,10.283751,165.31,165.27,142.3426]
[1749615542688,10.283751,165.32,165.28,18.79181043]
[1749615542881,10.283751,165.32,165.31,26.0]
[1749615546393,5.42,165.34,165.32,26.0]
[1749615547907,10.283751,165.33,165.32,26.0]
[1749615553211,5.42,165.34,165.32,26.0]
[1749615553421,152.2239493,165.5,165.32,26.0]
[1749615553422,6.2756,165.52,165.44,26.0]
[1749615553599,10.283751,165.48,165.46,26.0]
[1749615553910,10.283751,165.51,165.47,0.14216157]
[1749615555197,10.283751,165.5,165.47,0.14216157]
[1749615556699,10.283751,165.49,165.47,0.14216157]
[1749615557092,10.283751,165.5,165.47,0.14216157]
[1749615558110,10.283751,165.49,165.47,0.14216157]
[1749615558613,10.283751,165.48,165.46,50.9]
[1749615561323,10.283751,165.49,165.46,50.9]
[1749615561822,10.283751,165.5,165.46,50.9]
[1749615563118,10.283751,165.5,165.47,0.14216157]
[1749615563417,10.283751,165.5,165.48,24.88]
[1749615563894,10.283751,165.49,165.46,26.0]
[1749615564105,5.42,165.54,165.46,50.88]
[1749615564301,10.283751,165.49,165.46,140.78]
[1749615566109,10.283751,165.48,165.46,140.78]
[1749615566612,10.283751,165.47,165.46,89.9]
[1749615568940,10.283751,165.47,165.46,26.0]
[1749615571420,10.283751,165.47,165.45,26.0]
[1749615571617,10.283751,165.52,165.45,26.0]
[1749615571618,10.283751,165.46,165.45,26.0]
[1749615571816,10.283751,165.46,165.42,89.9]
[1749615572122,1.5755,165.5,165.42,115.9]
[1749615572421,10.283751,165.43,165.42,115.9]
[1749615573702,6.6288,165.48,165.42,115.9]
[1749615573908,10.283751,165.43,165.42,26.0]
[1749615576127,6.6288,165.48,165.42,26.0]
[1749615576315,10.283751,165.45,165.44,26.0]
[1749615580227,16.758351,165.52,165.46,26.0]
[1749615581319,10.283751,165.47,165.46,26.0]
[1749615584817,16.758351,165.52,165.46,26.0]
[1749615585016,10.283751,165.47,165.46,26.0]
[1749615589050,16.758351,165.52,165.46,116.04216157]
[1749615589237,10.283751,165.48,165.46,116.04216157]
[1749615590617,10.283751,165.52,165.46,116.04216157]
[1749615590942,10.283751,165.48,165.46,116.04216157]
[1749615591434,6.9227,165.54,165.5,26.0]
[1749615591435,10.283751,165.51,165.5,26.0]
[1749615591644,10.283751,165.53,165.51,0.14216157]
[1749615592018,10.283751,165.52,165.51,0.14216157]
[1749615593037,10.283751,165.52,165.51,25.00216157]
[1749615594636,10.283751,165.53,165.51,25.00216157]
[1749615596122,15.703751,165.54,165.53,26.0]
[1749615597536,5.42,165.54,165.53,26.0]
[1749615597932,10.283751,165.54,165.53,26.0]
[1749615598144,10.283751,165.6,165.53,50.86]
[1749615598345,6.599,165.61,165.54,0.14216157]
[1749615598653,10.283751,165.56,165.54,0.14216157]
[1749615598829,10.283751,165.6,165.54,0.14216157]
[1749615599029,10.283751,165.56,165.54,0.14216157]
[1749615600854,10.283751,165.57,165.54,0.14216157]
[1749615601158,10.283751,165.59,165.58,26.0]
[1749615601326,10.283751,165.6,165.59,26.0]
[1749615602045,5.4,165.62,165.6,26.0]
[1749615602235,10.283751,165.61,165.6,26.0]
[1749615602638,5.4,165.62,165.6,26.0]
[1749615603031,15.683751,165.62,165.6,26.0]
[1749615604548,10.283751,165.61,165.6,26.0]
[1749615604753,20.567502,165.61,165.6,26.0]
[1749615605132,20.567502,165.61,165.57,26.0]
[1749615605333,5.4,165.62,165.57,26.0]
[1749615605334,10.283751,165.58,165.57,26.0]
[1749615608061,5.4,165.62,165.57,26.0]
[1749615608563,10.283751,165.58,165.57,26.0]
[1749615609632,5.4,165.62,165.58,26.0]
[1749615609836,10.283751,165.59,165.58,26.0]
[1749615613872,10.283751,165.59,165.52,0.14216157]
[1749615614058,10.283751,165.53,165.52,0.14216157]
[1749615614569,10.283751,165.53,165.49,6.1744]
[1749615614570,10.283751,165.53,165.49,114.74]
[1749615614773,6.0958,165.57,165.49,114.74]
[1749615614774,6.0958,165.57,165.52,26.0]
[1749615614977,10.283751,165.53,165.52,26.0]
[1749615615346,10.283751,165.53,165.49,114.74]
[1749615615545,10.283751,165.53,165.49,89.9]
[1749615616153,10.283751,165.53,165.52,26.0]
[1749615617068,10.283751,165.53,165.48,114.74]
[1749615617252,1.6167,165.56,165.51,26.0]
[1749615617451,10.283751,165.52,165.51,26.0]
[1749615618547,6.0958,165.57,165.51,26.0]
[1749615618753,6.0958,165.57,165.49,24.98216157]
[1749615618754,10.283751,165.53,165.52,26.0]
[1749615618943,10.283751,165.54,165.52,26.0]
[1749615621547,6.0958,165.57,165.52,26.0]
[1749615621769,10.283751,165.54,165.52,26.0]
[1749615624145,10.283751,165.53,165.52,26.0]
[1749615624763,10.283751,165.54,165.52,26.0]
[1749615626873,10.283751,165.53,165.52,26.0]
[1749615628271,6.0958,165.57,165.52,26.0]
[1749615628474,10.283751,165.53,165.52,26.0]
[1749615635254,10.283751,165.6,165.52,115.9]
[1749615635460,10.283751,165.58,165.56,26.0]
[1749615636479,6.6255,165.61,165.56,115.9]
[1749615636678,10.283751,165.59,165.58,26.0]
[1749615639671,5.4,165.63,165.58,26.0]
[1749615639874,10.283751,165.59,165.58,26.0]
[1749615646682,5.4,165.63,165.59,26.0]
[1749615646885,10.283751,165.6,165.59,26.0]
[1749615657296,5.4,165.63,165.59,26.0]
[1749615657502,10.283751,165.6,165.59,26.0]
[1749615658381,5.4,165.63,165.59,26.0]
[1749615658579,10.283751,165.6,165.59,26.0]
[1749615660580,5.4,165.63,165.59,26.0]
[1749615660780,18.64964886,165.69,165.59,26.0]
[1749615660781,5.4,165.69,165.62,26.0]
[1749615660982,10.283751,165.63,165.62,26.0]
[1749615661596,10.283751,165.63,165.6,26.0]
[1749615661876,10.283751,165.61,165.6,26.0]
[1749615663202,5.4,165.69,165.6,26.0]
[1749615663406,10.283751,165.64,165.62,26.0]
[1749615665002,10.283751,165.68,165.62,26.0]
[1749615665206,10.283751,165.64,165.62,26.0]
[1749615666384,5.4,165.69,165.66,26.0]
[1749615666589,10.283751,165.67,165.66,26.0]
[1749615666890,5.4,165.69,165.66,26.0]
[1749615666891,5.4,165.69,165.66,50.82]
[1749615667084,10.283751,165.67,165.66,50.82]
[1749615667500,10.283751,165.67,165.66,26.0]
[1749615669010,10.283751,165.67,165.65,26.0]
[1749615669334,10.283751,165.66,165.65,26.0]
[1749615669513,10.283751,165.68,165.65,26.0]
[1749615669695,10.283751,165.66,165.65,26.0]
[1749615670693,5.4,165.69,165.65,26.0]
[1749615671016,10.283751,165.66,165.65,26.0]
[1749615679420,5.4,165.69,165.66,26.0]
[1749615679621,10.283751,165.67,165.66,26.0]
[1749615680218,10.283751,165.67,165.65,26.0]
[1749615680418,10.283751,165.66,165.65,26.0]
[1749615689305,10.283751,165.66,165.62,89.9]
[1749615689526,10.283751,165.63,165.62,115.9]
[1749615693125,10.283751,165.63,165.62,26.0]
[1749615693312,10.283751,165.63,165.6,89.9]
[1749615693512,10.283751,165.61,165.6,114.7]
[1749615693823,10.283751,165.61,165.59,26.0]
[1749615693824,10.283751,165.61,165.59,115.9]
[1749615694027,10.283751,165.6,165.59,140.7]
[1749615695426,10.283751,165.6,165.59,115.9]
[1749615695607,10.283751,165.6,165.59,140.7]
[1749615696415,18.267351,165.68,165.63,26.0]
[1749615696613,10.283751,165.64,165.63,26.0]
[1749615697539,5.4,165.69,165.63,26.0]
[1749615697711,5.4,165.69,165.64,24.8]
[1749615698036,10.283751,165.67,165.66,26.0]
[1749615702123,10.283751,165.67,165.64,89.9]
[1749615702322,10.283751,165.65,165.64,89.9]
[1749615702520,10.283751,165.65,165.58,110.07254886]
[1749615702835,10.283751,165.59,165.58,89.9]
[1749615704434,8.1065,165.65,165.58,89.9]
[1749615704435,8.1065,165.65,165.61,26.0]
[1749615704640,10.283751,165.62,165.61,26.0]
[1749615704839,10.283751,165.62,165.6,26.0]
[1749615705043,10.283751,165.61,165.57,89.9]
[1749615705216,10.283751,165.58,165.57,115.9]
[1749615705419,10.283751,165.58,165.57,89.9]
[1749615705625,10.283751,165.58,165.57,115.9]
[1749615705816,10.283751,165.58,165.57,89.9]
[1749615706141,8.1065,165.65,165.57,89.9]
[1749615706142,8.1065,165.65,165.57,115.9]
[1749615706342,10.283751,165.58,165.57,26.0]
[1749615708714,8.1065,165.65,165.57,26.0]
[1749615708947,10.283751,165.58,165.57,26.0]
[1749615711219,8.1065,165.65,165.57,26.0]
[1749615711532,10.283751,165.58,165.57,26.0]
[1749615714546,8.1065,165.65,165.57,26.0]
[1749615714846,10.283751,165.58,165.57,26.0]
[1749615716147,8.1065,165.65,165.57,26.0]
[1749615716437,10.283751,165.58,165.57,26.0]
[1749615722056,8.1065,165.65,165.6,26.0]
[1749615722228,5.38,165.67,165.6,26.0]
[1749615722425,10.283751,165.62,165.6,26.0]
[1749615722724,10.283751,165.62,165.61,24.8]
[1749615722922,10.283751,165.62,165.6,115.9]
[1749615723127,5.38,165.67,165.6,115.9]
[1749615723128,10.283751,165.61,165.6,115.9]
[1749615723335,10.283751,165.61,165.6,26.0]
[1749615737259,44.64964886,165.6,165.45,6.6521]
[1749615737447,10.283751,165.47,165.44,1.6648]
[1749615737642,15.663751,165.52,165.44,1.6648]
[1749615737849,18.79181043,165.59,165.47,26.0]
[1749615737850,10.283751,165.49,165.47,26.0]
[1749615738135,10.283751,165.48,165.47,44.79181043]
[1749615739552,10.283751,165.48,165.47,18.64964886]
[1749615739749,10.283751,165.48,165.47,18.79181043]
[1749615740768,10.283751,165.52,165.48,26.14216157]
[1749615740942,5.38,165.57,165.52,0.14216157]
[1749615741143,5.38,165.57,165.53,26.0]
[1749615741941,10.283751,165.54,165.53,26.0]
[1749615742141,10.283751,165.54,165.51,26.0]
[1749615742441,20.567502,165.52,165.51,26.0]
[1749615742953,20.567502,165.52,165.46,24.8]
[1749615743165,10.283751,165.47,165.46,24.8]
[1749615743342,10.283751,165.47,165.46,24.94216157]
[1749615743969,5.38,165.55,165.5,26.0]
[1749615744264,10.283751,165.51,165.5,26.0]
[1749615745255,10.283751,165.51,165.49,26.0]
[1749615745568,10.283751,165.5,165.49,26.0]
[1749615745756,10.283751,165.52,165.49,26.0]
[1749615745957,10.283751,165.5,165.49,26.0]
[1749615747168,10.283751,165.52,165.49,26.0]
[1749615747365,1.5491,165.58,165.48,26.0]
[1749615747545,10.283751,165.5,165.49,0.14216157]
[1749615747746,10.283751,165.51,165.49,0.14216157]
[1749615748556,10.283751,165.51,165.49,24.94216157]
[1749615750362,10.283751,165.5,165.49,24.94216157]
[1749615758265,10.283751,165.5,165.49,114.84216157]
[1749615760362,1.5491,165.58,165.52,26.0]
[1749615760562,10.283751,165.54,165.52,114.84216157]
[1749615760762,10.283751,165.54,165.53,0.14216157]
[1749615764062,10.283751,165.54,165.53,116.04216157]
[1749615766372,10.283751,165.54,165.53,115.9]
[1749615770084,10.283751,165.54,165.53,26.0]
[1749615772468,5.38,165.57,165.53,26.0]
[1749615772669,10.283751,165.54,165.53,26.0]
[1749615775189,10.283751,165.54,165.51,89.9]
[1749615775389,20.567502,165.52,165.46,108.54964886]
[1749615775599,10.283751,165.49,165.48,26.0]
[1749615777292,1.6192,165.56,165.48,26.14216157]
[1749615777596,10.283751,165.51,165.49,24.94216157]
[1749615778790,5.38,165.56,165.52,26.0]
[1749615778983,10.283751,165.53,165.51,24.8]
[1749615779290,10.283751,165.52,165.51,24.94216157]
[1749615782480,5.38,165.56,165.54,26.0]
[1749615782783,10.283751,165.55,165.54,26.0]
[1749615789188,5.38,165.58,165.54,26.0]
[1749615789505,10.283751,165.55,165.54,26.0]
[1749615793220,10.283751,165.55,165.52,26.0]
[1749615793401,10.283751,165.53,165.52,26.0]
[1749615795216,5.38,165.58,165.52,26.0]
[1749615795412,10.283751,165.53,165.52,26.0]
[1749615796698,10.283751,165.53,165.52,115.9]
[1749615798827,5.38,165.58,165.52,115.9]
[1749615799023,10.283751,165.53,165.52,115.9]
[1749615799324,10.283751,165.54,165.52,115.9]
[1749615799501,10.283751,165.54,165.52,140.68]
[1749615800011,10.283751,165.53,165.52,140.68]
[1749615801394,5.38,165.58,165.52,140.68]
[1749615801600,10.283751,165.54,165.52,140.68]
[1749615801808,10.283751,165.53,165.52,140.68]
[1749615804466,20.567502,165.53,165.52,89.9]
[1749615804914,10.283751,165.53,165.52,89.9]
[1749615805322,5.38,165.58,165.52,89.9]
[1749615805627,10.283751,165.53,165.52,140.68]
[1749615806001,10.283751,165.53,165.52,115.9]
[1749615806802,5.38,165.58,165.52,115.9]
[1749615807005,10.283751,165.53,165.52,115.9]